[Event "FRA-ch Youth 2017"]
[Site "Belfort"]
[Date "2017.04.21"]
[Round "7"]
[White "Midy, Robin"]
[Black "Mohammad, Fahim"]
[Result "1/2-1/2"]
[ECO "A45"]
[WhiteElo "2137"]
[BlackElo "2281"]
[Annotator "NA"]
[PlyCount "122"]
[EventDate "2017.??.??"]
[EventCountry "FRA"]
[SourceTitle "playchess.com"]
[Source "ChessBase"]
[SourceQuality "1"]
[TimeControl "5400+30"]

1. d4 {[%emt 0:00:00]} Nf6 {[%emt 0:01:22]} 2. Bg5 {[%emt 0:00:00]} Ne4 {[%emt 0:00:10]} 3. Bf4 {[%emt 0:00:00]} e5 {[%emt 0:00:47]} 4. Bxe5 {[%emt 0:07:54]} Nc6 {[%emt 0:01:25]} 5. Nd2 {[%emt 0:08:50]} d5 {[%emt 0:03:16] LiveBook: 6 Games} 6. e3 {[%emt 0:11:19]} h5 {[%emt 0:04:39]} 7. h4 {[%emt 0:13:02]} Qe7 {[%emt 0:06:46]} 8. Bb5 {[%emt 0:15:13]} Qb4 {[%emt 0:05:42]} 9. Bxc6+ {[%emt 0:00:19]} bxc6 {[%emt 0:00:07]} 10. Rb1 $16 {[%emt 0:03:40]} ({Don't play} 10. Bxc7 Nxd2 11. Qxd2 Qxb2 $15) 10... Ba6 {[%emt 0:09:05]} 11. Ne2 {[%emt 0:02:49]} Qa5 {[%emt 0:06:05]} 12. a3 {[%emt 0:09:52]} f6 {[%emt 0:04:46]} 13. Bh2 {[%emt 0:01:41]} Bb5 {[%emt 0:11:52]} 14. f3 {[%emt 0:03:01]} Nd6 {[%emt 0:01:17]} 15. Kf2 {[%emt 0:07:37]} Be7 {[%emt 0:04:10]} 16. Nc3 {[%emt 0:03:24]} Nf5 {[%emt 0:04:57]} 17. Nb3 {[%emt 0:01:44]} Qb6 {[%emt 0:01:09]} 18. Nxb5 {[%emt 0:01:20]} cxb5 {[%emt 0:00:13]} 19. Qd3 {[%emt 0:00:45]} Qe6 {[%emt 0:01:45]} 20. e4 {[%emt 0:03:20]} Nd6 {[%emt 0:05:54]} 21. exd5 {[%emt 0:00:20]} Qxd5 {[%emt 0:00:38]} 22. Bxd6 {[%emt 0:00:18]} Qxd6 {[%emt 0:00:54]} 23. Qg6+ {[%emt 0:00:05]} Kf8 {[%emt 0:01:18]} 24. Rbe1 {[%emt 0:00:14]} Rh6 {[%emt 0:00:45]} 25. Qe4 {[%emt 0:00:39]} Re8 {[%emt 0:01:03]} 26. Qe6 {[%emt 0:00:56]} Qd8 {[%emt 0:01:28]} 27. Qe4 {[%emt 0:02:35]} Kg8 {[%emt 0:01:44]} 28. g3 {[%emt 0:01:01]} f5 {[%emt 0:02:31]} 29. Qxf5 {[%emt 0:01:22]} Rf8 {[%emt 0:00:42]} 30. Qe4 {[%emt 0:00:25]} Bd6 {[%emt 0:00:53]} 31. Re3 {[%emt 0:01:05]} Qd7 {[%emt 0:02:24]} 32. Kg2 {[%emt 0:00:23]} Qf7 {[%emt 0:00:44]} 33. f4 {[%emt 0:00:37]} Kh8 {[%emt 0:02:38]} 34. Qf3 {[%emt 0:00:29]} Qg6 {[%emt 0:01:06]} 35. Kh2 {[%emt 0:00:37]} Qxc2+ {[%emt 0:01:59]} 36. Qe2 {[%emt 0:00:06]} Qc6 {[%emt 0:02:08]} 37. Re1 {[%emt 0:00:32]} Qd5 {[%emt 0:05:11]} 38. Qf3 {[%emt 0:00:33]} Qf7 {[%emt 0:00:51]} 39. Nd2 {[%emt 0:00:28]} Rf6 {[%emt 0:02:23]} 40. Ne4 {[%emt 0:00:44]} Bxf4 {[%emt 0:00:29]} 41. Nxf6 {[%emt 0:00:27]} Bxe3 {[%emt 0:00:07]} 42. Rxe3 {[%emt 0:00:26]} Qxf6 {[%emt 0:02:10]} 43. Qxf6 {[%emt 0:00:29]} Rxf6 {[%emt 0:00:04]} 44. Kg2 {[%emt 0:00:21]} Rc6 {[%emt 0:01:28]} 45. b4 {[%emt 0:00:33]} g6 {[%emt 0:00:46]} 46. d5 {[%emt 0:00:49]} Rc2+ {[%emt 0:00:34]} 47. Kf3 {[%emt 0:00:07]} Kg7 {[%emt 0:00:03]} 48. Ke4 {[%emt 0:00:27]} Kf6 {[%emt 0:00:21]} 49. Rf3+ {[%emt 0:00:28]} Ke7 {[%emt 0:00:06]} 50. Ke5 {[%emt 0:00:37]} Re2+ {[%emt 0:00:20]} 51. Kd4 {[%emt 0:00:05]} Rc2 {[%emt 0:00:47]} 52. Rc3 {[%emt 0:01:06]} Rxc3 53. Kxc3 {[%emt 0:00:01]} Kd7 {[%emt 0:01:40]} 54. Kd4 {[%emt 0:00:24]} Kd6 {[%emt 0:00:12]} 55. Ke4 {[%emt 0:00:15]} Kd7 {[%emt 0:00:14]} 56. Kf4 {[%emt 0:01:00]} Ke8 {[%emt 0:00:24]} 57. Ke4 {[%emt 0:00:50]} Kd7 {[%emt 0:00:14]} 58. Kd4 {[%emt 0:00:39]} Kd6 {[%emt 0:00:09]} 59. Ke4 {[%emt 0:00:07]} Kd7 {[%emt 0:00:11]} 60. Kf4 {[%emt 0:00:52]} Ke8 {[%emt 0:00:18]} 61. Ke4 Kd7 1/2-1/2

[Event "FRA-ch Youth 2017"]
[Site "Belfort"]
[Date "2017.04.21"]
[Round "7"]
[White "Trouve, Guillaume"]
[Black "Tahay, Romain"]
[Result "1-0"]
[ECO "B66"]
[WhiteElo "2134"]
[BlackElo "1971"]
[Annotator "NA"]
[PlyCount "61"]
[EventDate "2017.??.??"]
[EventCountry "FRA"]
[SourceTitle "playchess.com"]
[Source "ChessBase"]
[SourceQuality "1"]
[TimeControl "5400+30"]

1. e4 {[%emt 0:00:00]} c5 {[%emt 0:01:33]} 2. Nf3 {[%emt 0:00:00]} Nc6 {[%emt 0:00:09]} 3. d4 {[%emt 0:00:00]} cxd4 {[%emt 0:00:06]} 4. Nxd4 {[%emt 0:00:00]} Nf6 {[%emt 0:00:12]} 5. Nc3 {[%emt 0:00:00]} d6 {[%emt 0:00:13]} 6. Bg5 {[%emt 0:00:02]} e6 {[%emt 0:00:44]} 7. Qd2 {[%emt 0:00:13]} a6 {[%emt 0:00:05]} 8. O-O-O {[%emt 0:00:06]} h6 {[%emt 0:01:18]} 9. Nxc6 {[%emt 0:02:33]} bxc6 {[%emt 0:00:13]} 10. Bf4 {[%emt 0:00:05]} d5 {[%emt 0:01:15]} 11. Qe3 {[%emt 0:00:08]} Qa5 {[%emt 0:04:53] LiveBook: 106 Games} 12. Be2 {[%emt 0:01:06] B66: Sicilian: Richter-Rauzer: 7...a6 8 0-0-0 h6} Bb4 {[%emt 0:14:00]} 13. Be5 {[%emt 0:00:51]} dxe4 {[%emt 0:08:30]} 14. Qg3 {[%emt 0:14:32]} Bxc3 {[%emt 0:18:51]} 15. Bc7 {[%emt 0:13:25]} Qg5+ $146 {[%emt 0:01:48]} (15... Bxb2+ 16. Kxb2 Qb4+ 17. Ka1 Nd5 18. Qxg7 Qf8 19. Qd4 Bd7 {1-0 (37) Ponomariov,R (2673)-Bu,X (2558) Lausanne 2001}) 16. Qxg5 {[%emt 0:00:14]} hxg5 {[%emt 0:00:03]} 17. Rd8+ {[%emt 0:00:22]} ({Weaker is} 17. bxc3 Nd5 18. Ba5 Bb7 $17) 17... Ke7 $18 {[%emt 0:00:05]} 18. Rxh8 {[%emt 0:00:05]} Bb4 {[%emt 0:11:40]} 19. Rd1 {[%emt 0:11:24]} Nd5 {[%emt 0:07:22]} 20. Bd8+ {[%emt 0:02:58]} Kd7 {[%emt 0:03:41]} 21. Bxg5 {[%emt 0:00:56]} f6 {[%emt 0:01:48]} 22. Bh4 {[%emt 0:03:05]} Ke7 {[%emt 0:01:08]} 23. Bg3 {[%emt 0:00:38]} e5 {[%emt 0:02:14]} 24. c4 {[%emt 0:01:29]} Nb6 {[%emt 0:00:57]} 25. Rdd8 {[%emt 0:01:23]} g6 {[%emt 0:08:06]} 26. f4 {[%emt 0:03:55]} e3 {[%emt 0:03:48]} 27. fxe5 {[%emt 0:03:01]} Bd2+ {[%emt 0:07:15]} 28. Kd1 {[%emt 0:00:06]} fxe5 {[%emt 0:00:24]} 29. c5 {[%emt 0:03:22]} Bf5 {[%emt 0:01:25]} 30. Rhe8+ {[%emt 0:00:26]} Kf7 {[%emt 0:00:11]} 31. cxb6 {[%emt 0:00:13]} 1-0

[Event "FRA-ch Youth 2017"]
[Site "Belfort"]
[Date "2017.04.21"]
[Round "7"]
[White "Degraeve, Remy"]
[Black "Harutyunyan, Ruben"]
[Result "0-1"]
[ECO "B23"]
[WhiteElo "2126"]
[BlackElo "2218"]
[Annotator "NA"]
[PlyCount "72"]
[EventDate "2017.??.??"]
[EventCountry "FRA"]
[SourceTitle "playchess.com"]
[Source "ChessBase"]
[SourceQuality "1"]
[TimeControl "5400+30"]

1. e4 {[%emt 0:00:00]} c5 {[%emt 0:00:10]} 2. Nc3 {[%emt 0:00:00]} a6 {[%emt 0:00:11]} 3. g3 {[%emt 0:00:00]} b5 {[%emt 0:00:05]} 4. a4 {[%emt 0:00:00] B23: Closed Sicilian: Lines without g3} (4. Bg2 Bb7 5. d3 e6 6. Nh3 b4 7. Ne2 d5 8. e5 Nc6 9. f4 Nh6 10. Nf2 Nf5 11. O-O Qb6 12. c3 Be7 13. g4 Nh4 14. Bh1 {0-1 (35) Yu,Y (2738)-Khismatullin,D (2639) Moscow 2017}) 4... b4 {[%emt 0:00:28]} 5. Nd5 {[%emt 0:00:00]} e6 {[%emt 0:01:02]} 6. Ne3 {[%emt 0:00:00]} Bb7 {[%emt 0:01:18]} 7. Bg2 {[%emt 0:00:00]} Nf6 {[%emt 0:03:20]} 8. d3 {[%emt 0:00:00]} d6 {[%emt 0:09:29]} 9. Nf3 $146 {[%emt 0:00:03]} (9. Ne2 Nbd7 10. O-O Qc7 11. f4 Be7 12. f5 e5 {1-0 (48) Kulhanek,T (2333)-Maes,W (2239) Prague 2014}) 9... Nbd7 {[%emt 0:02:43]} 10. O-O {[%emt 0:00:30]} Be7 {[%emt 0:01:56]} 11. Nc4 {[%emt 0:00:26]} O-O {[%emt 0:13:37]} 12. Re1 {[%emt 0:04:21]} Qc7 {[%emt 0:13:45]} 13. b3 {[%emt 0:00:33]} Ng4 {[%emt 0:08:39]} 14. Bf4 {[%emt 0:05:28]} Nge5 {[%emt 0:01:40]} 15. Nfxe5 {[%emt 0:01:21]} dxe5 {[%emt 0:00:48]} 16. Bc1 {[%emt 0:01:04]} a5 {[%emt 0:06:37]} 17. Bb2 {[%emt 0:00:27]} Ba6 {[%emt 0:00:52]} 18. Ne3 Bg5 {[%emt 0:03:39]} 19. Qg4 {[%emt 0:12:15]} Bxe3 {[%emt 0:05:05]} 20. Rxe3 {[%emt 0:00:46]} Rfe8 {[%emt 0:03:26]} 21. f4 {[%emt 0:03:26]} f6 {[%emt 0:00:16]} 22. f5 {[%emt 0:01:07]} exf5 {[%emt 0:00:27]} 23. exf5 {[%emt 0:01:04]} Bb7 {[%emt 0:00:39]} 24. Qh4 $11 {[%emt 0:03:25]} Bxg2 {[%emt 0:01:44]} 25. Kxg2 {[%emt 0:00:02]} Nb6 {[%emt 0:04:17]} 26. Kf2 {[%emt 0:09:44]} Qd7 {[%emt 0:02:20]} 27. Qh5 {[%emt 0:02:01]} Nd5 {[%emt 0:03:14]} 28. Re4 {[%emt 0:00:13]} Ne7 {[%emt 0:01:52]} 29. g4 {[%emt 0:01:03]} Nd5 {[%emt 0:00:56]} 30. Rg1 {[%emt 0:01:57]} Rad8 {[%emt 0:02:41]} 31. Qh4 {[%emt 0:02:42]} h6 {[%emt 0:01:47]} 32. Rg3 {[%emt 0:01:37]} Qa7 {[%emt 0:02:36]} 33. Ke1 {[%emt 0:02:16]} Nf4 {[%emt 0:02:01]} 34. Kd1 {[%emt 0:05:09]} c4 {[%emt 0:00:54]} 35. Rxc4 {[%emt 0:02:31]} Qf2 {[%emt 0:00:44]} 36. Re4 {[%emt 0:16:50]} Rc8 {[%emt 0:00:36]} 0-1

[Event "FRA-ch Youth 2017"]
[Site "Belfort"]
[Date "2017.04.21"]
[Round "7"]
[White "Willems, Niels"]
[Black "Bergougnoux, Axel"]
[Result "1/2-1/2"]
[ECO "A34"]
[WhiteElo "2116"]
[BlackElo "2194"]
[Annotator "NA"]
[PlyCount "114"]
[EventDate "2017.??.??"]
[EventCountry "FRA"]
[SourceTitle "playchess.com"]
[Source "ChessBase"]
[SourceQuality "1"]
[TimeControl "5400+30"]

1. c4 {[%emt 0:00:00]} Nf6 {[%emt 0:00:00]} 2. g3 {[%emt 0:00:00]} c5 {[%emt 0:00:10]} 3. Bg2 {[%emt 0:00:00]} d5 {[%emt 0:00:01]} 4. cxd5 {[%emt 0:00:02]} Nxd5 {[%emt 0:00:02]} 5. Nc3 {[%emt 0:00:10]} Nc7 {[%emt 0:00:01]} 6. Nf3 {[%emt 0:00:53]} Nc6 {[%emt 0:00:03]} 7. d3 {[%emt 0:00:30]} e5 {[%emt 0:00:06]} 8. Nd2 {[%emt 0:02:06]} Bd7 {[%emt 0:00:40]} 9. Nc4 {[%emt 0:02:54]} Be7 {[%emt 0:01:30]} 10. O-O {[%emt 0:00:37]} f6 {[%emt 0:00:05]} 11. Ne3 {[%emt 0:03:04] A34: Symmetrical English: 2 Nc3, lines with ...d5} O-O {[%emt 0:07:49] LiveBook: 4 Games} 12. Ned5 {[%emt 0:08:16]} Nxd5 {[%emt 0:03:29]} 13. Nxd5 {[%emt 0:00:50]} b6 {[%emt 0:00:29]} 14. a3 $146 {[%emt 0:06:00]} (14. b3 Rc8 15. Bb2 Be6 16. Nxe7+ Qxe7 17. Qc1 Qd7 {½-½ (32) Weiss,C (2200)-Baum,B (2265) Eger 1989}) 14... Rc8 {[%emt 0:03:03]} 15. b4 {[%emt 0:11:59]} Be6 {[%emt 0:05:17]} 16. Nxe7+ {[%emt 0:01:20]} Qxe7 {[%emt 0:00:54]} 17. bxc5 {[%emt 0:01:54]} Nd4 {[%emt 0:04:59]} 18. c6 $11 {[%emt 0:03:41]} Nxc6 {[%emt 0:21:34]} 19. Bd2 {[%emt 0:16:41]} Qf7 {[%emt 0:03:07]} 20. Bc3 {[%emt 0:05:41]} Bb3 {[%emt 0:13:49]} 21. Qd2 {[%emt 0:01:03]} a5 {[%emt 0:00:10]} 22. Qe3 {[%emt 0:06:51]} Ne7 {[%emt 0:16:22]} 23. Rac1 {[%emt 0:01:31]} Rc5 {[%emt 0:00:18]} 24. Bb2 {[%emt 0:03:00]} Rfc8 {[%emt 0:00:16]} 25. Rxc5 {[%emt 0:00:12]} Rxc5 {[%emt 0:00:03]} 26. Rc1 {[%emt 0:00:18]} Rxc1+ {[%emt 0:02:47]} 27. Qxc1 {[%emt 0:02:24]} Qe6 {[%emt 0:00:00]} 28. Qc7 {[%emt 0:01:33]} Kf7 {[%emt 0:00:29]} 29. Bf3 {[%emt 0:01:21]} Qc8 {[%emt 0:06:11]} 30. Qxc8 {[%emt 0:03:33]} Nxc8 {[%emt 0:00:01]} 31. d4 {[%emt 0:00:53]} exd4 32. Bxd4 {[%emt 0:00:06]} Ke6 {[%emt 0:02:09]} 33. e4 {[%emt 0:00:31]} Kd6 {[%emt 0:01:59]} 34. Bg4 {[%emt 0:01:11]} Be6 {[%emt 0:00:02]} 35. Bxe6 {[%emt 0:00:53]} Kxe6 {[%emt 0:00:00]} 36. f4 {[%emt 0:01:36]} b5 {[%emt 0:01:50]} 37. Bc3 {[%emt 0:00:10]} Nd6 {[%emt 0:01:04]} 38. f5+ {[%emt 0:03:00]} Kd7 {[%emt 0:00:52]} 39. Bxa5 {[%emt 0:00:12]} Nxe4 {[%emt 0:00:02]} 40. Bb4 {[%emt 0:00:53]} Kc6 {[%emt 0:00:11]} 41. Kg2 {[%emt 0:01:16]} Kd5 {[%emt 0:00:01]} 42. g4 {[%emt 0:00:57]} Kd4 {[%emt 0:06:10]} 43. Bf8 {[%emt 0:02:32]} g6 {[%emt 0:00:29]} 44. fxg6 hxg6 {[%emt 0:00:01]} 45. h4 {[%emt 0:00:13]} Ke3 {[%emt 0:01:39]} 46. h5 {[%emt 0:02:12]} gxh5 {[%emt 0:00:01]} 47. Bh6+ {[%emt 0:00:14]} Kd4 {[%emt 0:02:50]} 48. gxh5 {[%emt 0:00:02]} Ke5 {[%emt 0:00:22]} 49. Kf3 {[%emt 0:03:05]} Kf5 {[%emt 0:00:07]} 50. Bc1 {[%emt 0:00:20]} Nd6 {[%emt 0:01:08]} 51. Bd2 {[%emt 0:02:02]} Nc4 {[%emt 0:00:18]} 52. Bc1 {[%emt 0:00:01]} Ne5+ {[%emt 0:00:17]} 53. Kg3 {[%emt 0:00:46]} Nf7 {[%emt 0:00:29]} 54. Kf3 {[%emt 0:00:08]} Ne5+ {[%emt 0:00:23]} 55. Kg3 {[%emt 0:00:06]} Nf7 {[%emt 0:00:00]} 56. Kf3 {[%emt 0:00:14]} Nh8 {[%emt 0:01:23]} 57. Bd2 {[%emt 0:00:14]} Nf7 {[%emt 0:00:32]} 1/2-1/2

[Event "FRA-ch Youth 2017"]
[Site "Belfort"]
[Date "2017.04.21"]
[Round "7"]
[White "Kern, Nicolas"]
[Black "Viennot, Dylan"]
[Result "1-0"]
[ECO "C01"]
[WhiteElo "2085"]
[BlackElo "2263"]
[Annotator "NA"]
[PlyCount "95"]
[EventDate "2017.??.??"]
[EventCountry "FRA"]
[SourceTitle "playchess.com"]
[Source "ChessBase"]
[SourceQuality "1"]
[TimeControl "5400+30"]

1. e4 {[%emt 0:00:00]} e6 {[%emt 0:00:34]} 2. d4 {[%emt 0:00:00]} d5 {[%emt 0:00:05]} 3. exd5 {[%emt 0:00:41]} exd5 {[%emt 0:00:58]} 4. Bd3 {[%emt 0:00:21]} c5 {[%emt 0:01:24]} 5. Nf3 {[%emt 0:00:57]} c4 {[%emt 0:00:37]} 6. Be2 {[%emt 0:00:24]} Bd6 {[%emt 0:01:10]} 7. b3 {[%emt 0:00:53]} cxb3 $1 {[%emt 0:00:06]} 8. axb3 {[%emt 0:00:11]} Ne7 {[%emt 0:01:20] LiveBook: 4 Games} 9. O-O {[%emt 0:00:21]} Nbc6 {[%emt 0:00:29]} 10. c4 {[%emt 0:07:20]} Bf5 {[%emt 0:10:57]} 11. Nc3 {[%emt 0:11:30]} a6 {[%emt 0:01:33]} 12. Be3 {[%emt 0:19:18]} O-O {[%emt 0:03:13]} 13. Qd2 {[%emt 0:02:12] B22: Sicilian: 2 c3} Rc8 {[%emt 0:02:27]} 14. c5 {[%emt 0:12:18]} Bc7 {[%emt 0:00:46]} 15. Ne1 $146 {[%emt 0:04:50]} (15. Na2 Ng6 16. b4 Re8 17. g3 Qd7 18. Ne1 Bg4 19. Nc2 h5 20. Nc3 Bxe2 21. Qxe2 Qf5 22. Rfd1 Rcd8 23. Qd3 Qg4 24. Qe2 Qf5 25. Qd3 Qg4 26. Qe2 {½-½ (26) Murariu,A (2501)-Podinic,V (2428) Bucharest 2012}) 15... Qd7 {[%emt 0:04:45]} 16. h3 $11 {[%emt 0:04:37]} Bg6 {[%emt 0:34:15]} 17. Bf3 {[%emt 0:02:56]} Bf5 {[%emt 0:08:36]} 18. Ne2 {[%emt 0:03:47]} Ng6 {[%emt 0:04:11]} 19. Ng3 {[%emt 0:03:30]} Be6 {[%emt 0:00:44]} 20. Be2 {[%emt 0:04:10]} Nce7 {[%emt 0:02:55]} 21. Nd3 {[%emt 0:06:02]} Rfe8 {[%emt 0:05:19]} 22. f4 {[%emt 0:05:38]} f6 {[%emt 0:00:33]} 23. Bf2 {[%emt 0:01:28]} Nf5 {[%emt 0:01:51]} 24. Nh5 {[%emt 0:00:30]} Nfh4 {[%emt 0:02:12]} 25. Kh2 {[%emt 0:01:53]} Nxg2 {[%emt 0:02:15]} 26. Rg1 {[%emt 0:00:03]} Bxh3 {[%emt 0:02:48]} 27. Rxg2 {[%emt 0:03:40]} Bxg2 {[%emt 0:01:16]} 28. Kxg2 {[%emt 0:00:01]} Re4 {[%emt 0:00:19]} 29. Bf3 {[%emt 0:00:41]} Rce8 {[%emt 0:00:48]} 30. Rh1 {[%emt 0:01:57]} R8e7 {[%emt 0:04:38]} 31. Kf1 {[%emt 0:01:46]} Qb5 {[%emt 0:01:34]} 32. Kg1 {[%emt 0:01:28]} f5 {[%emt 0:00:36]} 33. Ne5 {[%emt 0:00:16]} Bxe5 {[%emt 0:00:45]} 34. dxe5 {[%emt 0:00:13]} Qxb3 {[%emt 0:00:38]} 35. Bxe4 {[%emt 0:00:04]} fxe4 {[%emt 0:00:19]} 36. Ng3 {[%emt 0:00:41]} h6 {[%emt 0:00:49]} 37. Be3 {[%emt 0:00:32]} Re8 {[%emt 0:00:22]} 38. Ne2 {[%emt 0:00:42]} Rf8 {[%emt 0:00:29]} 39. Nc3 {[%emt 0:00:33]} Ne7 {[%emt 0:00:11]} 40. Kf2 {[%emt 0:00:22]} Kh7 {[%emt 0:00:36]} 41. Rb1 {[%emt 0:00:11]} Qc4 {[%emt 0:00:06]} 42. Rxb7 {[%emt 0:00:24]} Ng6 {[%emt 0:00:35]} 43. Nxd5 {[%emt 0:00:28]} Nxe5 {[%emt 0:01:08]} 44. Qd4 {[%emt 0:01:11]} Nd3+ {[%emt 0:00:43]} 45. Kg3 {[%emt 0:00:17]} Qxd4 {[%emt 0:00:29]} 46. Bxd4 {[%emt 0:00:02]} Nxf4 {[%emt 0:00:23]} 47. Rxg7+ {[%emt 0:00:15]} Kh8 {[%emt 0:00:02]} 48. Nxf4 {[%emt 0:00:16]} 1-0

[Event "FRA-ch Youth 2017"]
[Site "Belfort"]
[Date "2017.04.21"]
[Round "7"]
[White "Boyer, Mahel"]
[Black "Decuigniere, Tom"]
[Result "1-0"]
[ECO "E42"]
[WhiteElo "2020"]
[BlackElo "1909"]
[Annotator "NA"]
[PlyCount "107"]
[EventDate "2017.??.??"]
[EventCountry "FRA"]
[SourceTitle "playchess.com"]
[Source "ChessBase"]
[SourceQuality "1"]
[TimeControl "5400+30"]

1. d4 {[%emt 0:00:00]} Nf6 {[%emt 0:00:16]} 2. c4 {[%emt 0:00:00]} e6 {[%emt 0:00:03]} 3. Nc3 {[%emt 0:00:00] Bb} Bb4 {[%emt 0:00:16]} 4. e3 {[%emt 0:00:00]} c5 {[%emt 0:04:56]} 5. Nge2 {[%emt 0:00:11]} b6 {[%emt 0:00:38]} 6. a3 {[%emt 0:00:09]} Ba5 {[%emt 0:06:18] LiveBook: 896 Games} 7. Rb1 {[%emt 0:00:07]} Na6 {[%emt 0:00:05]} 8. g3 {[%emt 0:00:32]} Bb7 {[%emt 0:00:46] E42: Nimzo-Indian: Rubinstein: 4...c5 5 Ne2} 9. d5 {[%emt 0:00:04]} Ne4 {[%emt 0:15:36]} (9... b5 10. Bg2 bxc4 11. O-O O-O 12. e4 d6 13. Qa4 exd5 14. Nxd5 Nxd5 15. exd5 Bb6 16. Nc3 {1-0 (67) Aleksandrov,A (2568)-Nabaty,T (2644) Yerevan 2016}) 10. Bg2 {[%emt 0:00:58]} Nxc3 {[%emt 0:04:08]} 11. Nxc3 {[%emt 0:00:49]} Bxc3+ {[%emt 0:00:10]} 12. bxc3 {[%emt 0:00:07]} O-O {[%emt 0:02:29]} 13. O-O {[%emt 0:00:09]} Qf6 $146 {[%emt 0:11:58]} (13... e5 14. e4 d6 15. f4 Nc7 16. a4 {1-0 (35) Dolezal,C (2439)-Valerga,D (2481) Buenos Aires 2015}) 14. Qa4 {[%emt 0:12:53]} Nb8 {[%emt 0:06:53]} 15. e4 {[%emt 0:06:32]} d6 {[%emt 0:03:00]} 16. f4 $11 {[%emt 0:08:43]} Qe7 {[%emt 0:05:50]} 17. e5 {[%emt 0:01:36]} f6 {[%emt 0:12:05]} 18. f5 {[%emt 0:11:28]} exd5 {[%emt 0:05:58]} 19. exd6 {[%emt 0:03:17]} Qxd6 {[%emt 0:02:42]} 20. Bf4 {[%emt 0:05:51]} Qd7 {[%emt 0:00:11]} 21. Qd1 {[%emt 0:08:13]} Rd8 {[%emt 0:01:11]} 22. Qg4 {[%emt 0:03:13]} Na6 {[%emt 0:01:43]} 23. cxd5 {[%emt 0:03:45]} Bxd5 {[%emt 0:00:13]} 24. Rbd1 {[%emt 0:00:46]} Qf7 {[%emt 0:00:44]} 25. Rxd5 {[%emt 0:01:00]} Rxd5 {[%emt 0:00:10]} 26. Qe2 {[%emt 0:00:06]} Re8 {[%emt 0:11:00]} 27. Qxa6 {[%emt 0:00:04]} Rdd8 {[%emt 0:00:03]} 28. c4 {[%emt 0:00:37]} Kh8 {[%emt 0:00:14]} 29. Bd5 {[%emt 0:00:13]} Qd7 {[%emt 0:02:55]} 30. Qb7 {[%emt 0:05:23]} Qxb7 {[%emt 0:00:19]} 31. Bxb7 {[%emt 0:00:01]} Rd4 {[%emt 0:00:13]} 32. Rc1 {[%emt 0:01:11]} g5 {[%emt 0:01:23]} 33. fxg6 {[%emt 0:00:12]} hxg6 {[%emt 0:00:04]} 34. h4 {[%emt 0:01:10]} Rd3 {[%emt 0:00:33]} 35. Kf2 {[%emt 0:00:28]} Rxa3 {[%emt 0:01:51]} 36. Rd1 {[%emt 0:00:16]} Ra2+ {[%emt 0:00:01]} 37. Kf3 {[%emt 0:00:19]} f5 {[%emt 0:00:21]} 38. Bg5 {[%emt 0:05:16]} Ra3+ {[%emt 0:01:15]} 39. Kf4 {[%emt 0:00:01]} Ra2 {[%emt 0:00:28]} 40. Bf6+ {[%emt 0:00:27]} Kg8 {[%emt 0:00:06]} 41. Rd7 {[%emt 0:00:22]} Rae2 {[%emt 0:01:20]} 42. Bd5+ {[%emt 0:00:42]} R2e6 {[%emt 0:00:09]} 43. Rd8 {[%emt 0:01:40]} Kh7 {[%emt 0:00:41]} 44. Bxe6 {[%emt 0:00:13]} Rxd8 {[%emt 0:00:29]} 45. Bxd8 {[%emt 0:00:03]} Kh6 {[%emt 0:00:05]} 46. Ke5 {[%emt 0:01:27]} Kh5 {[%emt 0:00:28]} 47. Kd5 {[%emt 0:00:04]} Kg4 48. Bc7 a6 {[%emt 0:00:29]} 49. Kc6 {[%emt 0:00:09]} b5 {[%emt 0:00:09]} 50. Kxc5 {[%emt 0:00:06]} bxc4 51. Kxc4 {[%emt 0:00:19]} a5 {[%emt 0:00:11]} 52. Bf7 {[%emt 0:00:20]} g5 {[%emt 0:00:04]} 53. hxg5 {[%emt 0:00:09]} Kxg5 {[%emt 0:00:03]} 54. Bf4+ {[%emt 0:00:06]} 1-0

[Event "FRA-ch Youth 2017"]
[Site "Belfort"]
[Date "2017.04.21"]
[Round "7"]
[White "Retailleau, Elise"]
[Black "Bruneau, Maylis"]
[Result "1-0"]
[ECO "B24"]
[WhiteElo "1946"]
[BlackElo "1794"]
[Annotator "NA"]
[PlyCount "33"]
[EventDate "2017.??.??"]
[EventCountry "FRA"]
[SourceTitle "playchess.com"]
[Source "ChessBase"]
[SourceQuality "1"]
[TimeControl "5400+30"]

1. e4 {[%emt 0:00:00]} c5 {[%emt 0:00:09]} 2. Nc3 {[%emt 0:00:05]} Nc6 {[%emt 0:00:28]} 3. Bb5 {[%emt 0:00:24]} g6 {[%emt 0:01:29]} 4. Bxc6 {[%emt 0:00:31]} dxc6 {[%emt 0:01:06]} 5. d3 {[%emt 0:01:08]} Bg7 {[%emt 0:00:45]} 6. Be3 {[%emt 0:01:01]} b6 {[%emt 0:03:16]} 7. Qd2 {[%emt 0:02:20]} Nf6 {[%emt 0:02:29]} 8. h3 {[%emt 0:01:42]} O-O {[%emt 0:02:29] LiveBook: 3 Games} 9. f4 {[%emt 0:01:26]} Qc7 {[%emt 0:06:56]} 10. Nf3 {[%emt 0:03:14]} Ba6 {[%emt 0:04:36]} 11. O-O {[%emt 0:06:13]} Rad8 {[%emt 0:01:51]} 12. f5 {[%emt 0:06:45]} e5 $16 {[%emt 0:09:01]} (12... gxf5 $11 {keeps the balance.} 13. Bf4 (13. exf5 c4 $11) 13... Qd7 14. exf5 c4) 13. Qf2 {[%emt 0:14:10]} Qe7 {[%emt 0:08:51]} 14. b3 {[%emt 0:05:41]} Bc8 {[%emt 0:08:49]} 15. Qh4 {[%emt 0:08:48]} gxf5 {[%emt 0:06:57]} 16. Bh6 {[%emt 0:02:35]} Rd6 {[%emt 0:08:32]} 17. Qg5 {[%emt 0:01:06]} 1-0

[Event "FRA-ch Youth 2017"]
[Site "Belfort"]
[Date "2017.04.21"]
[Round "7"]
[White "Meillon, Judicael"]
[Black "Candelot, Clement"]
[Result "1/2-1/2"]
[ECO "C30"]
[WhiteElo "1884"]
[BlackElo "1839"]
[Annotator "NA"]
[PlyCount "59"]
[EventDate "2017.??.??"]
[EventCountry "FRA"]
[SourceTitle "playchess.com"]
[Source "ChessBase"]
[SourceQuality "1"]
[TimeControl "5400+30"]

1. e4 {[%emt 0:00:00]} e5 {[%emt 0:00:11]} 2. f4 {[%emt 0:00:00]} Bc5 {[%emt 0:00:43]} 3. Nf3 {[%emt 0:00:00]} d6 {[%emt 0:00:07]} 4. Nc3 {[%emt 0:03:55]} Bg4 {[%emt 0:04:46]} 5. h3 {[%emt 0:07:34]} Bxf3 {[%emt 0:00:34]} 6. Qxf3 {[%emt 0:00:05]} a6 {[%emt 0:02:01]} 7. d3 {[%emt 0:09:27]} Nc6 {[%emt 0:07:46]} 8. Be3 {[%emt 0:04:36]} Bxe3 {[%emt 0:07:22]} 9. Qxe3 {[%emt 0:00:15]} Nge7 {[%emt 0:02:50]} 10. O-O-O {[%emt 0:04:52]} Nd4 {[%emt 0:03:15]} (10... d5 $11 11. Qg3 d4) 11. Ne2 {[%emt 0:02:51]} c5 {[%emt 0:01:41]} 12. Nxd4 {[%emt 0:00:58]} cxd4 {[%emt 0:00:22]} 13. Qg3 {[%emt 0:00:44]} Qa5 $11 {[%emt 0:05:59]} 14. Kb1 {[%emt 0:01:34]} Rg8 {[%emt 0:00:39]} 15. Be2 {[%emt 0:04:41]} Qb5 {[%emt 0:06:29]} 16. Rhf1 {[%emt 0:07:21]} a5 {[%emt 0:04:05]} 17. fxe5 {[%emt 0:09:03]} dxe5 {[%emt 0:00:29]} 18. Qe1 {[%emt 0:06:00]} Ra6 {[%emt 0:02:52]} 19. c4 {[%emt 0:00:25]} Qc5 {[%emt 0:00:45]} 20. Rc1 {[%emt 0:02:29]} Rb6 {[%emt 0:01:17]} 21. Bd1 {[%emt 0:01:37]} Ng6 {[%emt 0:04:17]} 22. g3 {[%emt 0:01:10]} Ke7 {[%emt 0:01:48]} 23. Ba4 {[%emt 0:01:56]} Rc8 {[%emt 0:04:57]} 24. Bb5 {[%emt 0:00:47]} Qb4 {[%emt 0:02:25]} 25. Qxb4+ {[%emt 0:01:05]} axb4 {[%emt 0:00:05]} 26. Ba4 {[%emt 0:00:16]} Nf8 {[%emt 0:01:11]} 27. c5 {[%emt 0:01:13]} Rf6 {[%emt 0:04:32]} 28. Rxf6 {[%emt 0:01:24]} gxf6 {[%emt 0:00:13]} 29. c6 {[%emt 0:02:18]} bxc6 {[%emt 0:00:24]} 30. Rxc6 {[%emt 0:00:08]} 1/2-1/2